fUST/lending_fUST_20250506
["ID","MTS","AMOUNT","RATE_DAILY","PERIOD"]
[360009573,1746478243393,-400.0,0.0003315,8]
[360009575,1746478243403,-400.0,0.0003315,8]
[360009577,1746478243412,-400.0,0.0003315,8]
[360009579,1746478243421,-400.0,0.0003315,8]
[360009581,1746478243430,-1120.46,0.0003315,8]
[360009583,1746478243440,-400.0,0.0003315,8]
[360009585,1746478243454,-400.0,0.0003315,8]
[360009587,1746478243463,-753.58,0.0003315,8]
[360009589,1746478243472,-400.0,0.0003315,8]
[360009591,1746478243481,-432.63208587,0.0003315,8]
[360009593,1746478243490,-500.0,0.0003315,8]
[360009595,1746478243500,-400.0,0.0003315,8]
[360009597,1746478243509,-507.88,0.0003315,8]
[360009599,1746478243519,-400.0,0.0003315,8]
[360009601,1746478243528,-1829.51,0.0003315,8]
[360009603,1746478243537,-400.0,0.0003315,8]
[360009605,1746478243546,-334.86117381,0.0003315,8]
[360009607,1746478243555,-400.0,0.0003315,8]
[360009609,1746478243564,-1620.57,0.0003315,8]
[360009611,1746478243573,-400.0,0.0003315,8]
[360009613,1746478243583,-592.51,0.0003315,8]
[360009615,1746478243592,-400.0,0.0003315,8]
[360009617,1746478243601,-537.21,0.0003315,8]
[360009619,1746478243610,-400.0,0.0003315,8]
[360009621,1746478243619,-2523.41,0.0003315,8]
[360009623,1746478243629,-547.87,0.0003315,8]
[360009625,1746478243638,-400.0,0.0003315,8]
[360009627,1746478243647,-400.0,0.0003315,8]
[360009629,1746478243656,-543.46,0.0003315,8]
[360009631,1746478243666,-400.0,0.0003315,8]
[360009633,1746478243675,-400.0,0.0003315,8]
[360009635,1746478243685,-500.0,0.0003315,8]
[360009637,1746478243694,-400.0,0.0003315,8]
[360009639,1746478243705,-400.0,0.0003315,8]
[360009641,1746478243715,-770.95,0.0003315,8]
[360009643,1746478243724,-1081.95,0.0003315,8]
[360009645,1746478243733,-400.0,0.0003315,8]
[360009647,1746478243743,-400.0,0.0003315,8]
[360009649,1746478243752,-400.0,0.0003315,8]
[360009651,1746478243762,-400.0,0.0003315,8]
[360009653,1746478243771,-400.0,0.0003315,8]
[360009655,1746478243780,-224.62325569,0.0003315,8]
[360009657,1746478243789,-483.31,0.0003315,8]
[360009659,1746478243798,-400.0,0.0003315,8]
[360009661,1746478243807,-1243.4,0.0003315,8]
[360009663,1746478243816,-1098.85,0.0003315,8]
[360009665,1746478243825,-482.85,0.0003315,8]
[360009667,1746478243834,-400.0,0.0003315,8]
[360009669,1746478243844,-400.0,0.0003315,8]
[360009671,1746478243853,-566.0,0.0003315,8]
[360009673,1746478243862,-400.0,0.0003315,8]
[360009675,1746478243872,-400.0,0.0003315,8]
[360009677,1746478243881,-400.0,0.0003315,8]
[360009679,1746478243892,-400.0,0.0003315,8]
[360009681,1746478243901,-400.0,0.0003315,8]
[360009683,1746478243910,-400.0,0.0003315,8]
[360009685,1746478243920,-400.0,0.0003315,8]
[360009687,1746478243929,-400.0,0.0003315,8]
[360009689,1746478243939,-400.0,0.0003315,8]
[360009692,1746478243950,-400.0,0.0003315,8]
[360009694,1746478243963,-254.94706491,0.0003315,8]
[360009696,1746478243973,-400.0,0.0003315,8]
[360009698,1746478243982,-709.8,0.0003315,8]
[360009700,1746478243991,-400.0,0.0003315,8]
[360009702,1746478244000,-400.0,0.0003315,8]
[360009704,1746478244010,-4121.14,0.0003315,8]
[360009706,1746478244019,-400.0,0.0003315,8]
[360009708,1746478244028,-812.34,0.0003315,8]
[360009711,1746478244050,-654.51,0.0003315,8]
[360009713,1746478244061,-400.0,0.0003315,8]
[360009715,1746478244071,-730.71,0.0003315,8]
[360009717,1746478244081,-400.0,0.0003315,8]
[360009719,1746478244090,-400.0,0.0003315,8]
[360009721,1746478244100,-400.0,0.0003315,8]
[360009723,1746478244110,-516.18071005,0.0003315,8]
[360009725,1746478244119,-400.0,0.0003315,8]
[360009727,1746478244130,-400.0,0.0003315,8]
[360009730,1746478244140,-2752.23,0.0003315,2]
[360009732,1746478244150,-400.0,0.0003315,8]
[360009734,1746478244160,-432.56,0.0003315,8]
[360009736,1746478244170,-762.68,0.0003315,8]
[360009738,1746478244180,-431.94,0.0003315,8]
[360009740,1746478244189,-436.54,0.0003315,8]
[360009742,1746478244200,-400.0,0.0003315,8]
[360009744,1746478244210,-400.0,0.0003315,8]
[360009746,1746478244219,-673.29,0.0003315,8]
[360009748,1746478244229,-400.0,0.0003315,8]
[360009750,1746478244239,-1252.09,0.0003315,8]
[360009752,1746478244249,-702.93,0.0003315,8]
[360009754,1746478244259,-400.0,0.0003315,8]
[360009756,1746478244268,-400.0,0.0003315,8]
[360009758,1746478244277,-400.0,0.0003315,8]
[360009760,1746478244286,-1335.89,0.0003315,8]
[360009762,1746478244296,-400.0,0.0003315,8]
[360009764,1746478244305,-409.22,0.0003315,8]
[360009766,1746478244315,-400.0,0.0003315,8]
[360009768,1746478244325,-400.0,0.0003315,8]
[360009770,1746478244335,-442.22631754,0.0003315,8]
[360009773,1746478244345,-990.15,0.0003315,8]
[360009775,1746478244355,-400.0,0.0003315,8]
[360009777,1746478244364,-400.0,0.0003315,8]
[360009779,1746478244374,-400.0,0.0003315,8]
[360009781,1746478244383,-784.71,0.0003315,8]
[360009783,1746478244393,-400.0,0.0003315,8]
[360009785,1746478244402,-624.56,0.0003315,8]
[360009787,1746478244412,-411.93,0.0003315,8]
[360009789,1746478244421,-446.32,0.0003315,8]
[360009791,1746478244431,-500.9,0.0003315,8]
[360009793,1746478244445,-827.29,0.0003315,8]
[360009795,1746478244455,-530.84,0.0003315,8]
[360009798,1746478244465,-693.82,0.0003315,8]
[360009800,1746478244474,-400.0,0.0003315,8]
[360009802,1746478244485,-612.41,0.0003315,8]
[360009804,1746478244494,-400.0,0.0003315,8]
[360009806,1746478244504,-400.0,0.0003315,8]
[360009808,1746478244514,-400.0,0.0003315,8]
[360009810,1746478244523,-461.37,0.0003315,8]
[360009812,1746478244534,-430.1,0.0003315,8]
[360009813,1746478244543,-400.0,0.0003315,8]
[360009814,1746478244553,-563.39,0.0003315,8]
[360009815,1746478244562,-400.0,0.0003315,8]
[360009816,1746478244572,-400.0,0.0003315,8]
[360009817,1746478244581,-400.0,0.0003315,8]
[360009818,1746478244590,-400.0,0.0003315,8]
[360009819,1746478244600,-2969.31,0.0003315,8]
[360009820,1746478244609,-605.17,0.0003315,8]
[360009821,1746478244618,-400.0,0.0003315,8]
[360009822,1746478244628,-400.0,0.0003315,8]
[360009823,1746478244637,-400.0,0.0003315,8]
[360009824,1746478244646,-2239.62,0.0003315,8]
[360009825,1746478244655,-401.12,0.0003315,8]
[360009827,1746478244665,-4096.94,0.0003315,8]
[360009829,1746478244675,-400.0,0.0003315,8]
[360009831,1746478244684,-400.0,0.0003315,8]
[360009833,1746478244694,-3050.13,0.0003315,8]
[360009835,1746478244703,-2910.47,0.0003315,8]
[360009837,1746478244713,-773.72,0.0003315,8]
[360009839,1746478244723,-400.0,0.0003315,8]
[360009841,1746478244732,-1317.05,0.0003315,8]
[360009843,1746478244742,-409.79425787,0.0003315,8]
[360009845,1746478244752,-2598.82,0.0003315,8]
[360009847,1746478244762,-400.0,0.0003315,8]
[360009849,1746478244771,-417.65,0.0003315,8]
[360009851,1746478244781,-552.03,0.0003315,8]
[360009853,1746478244791,-400.0,0.0003315,8]
[360009855,1746478244801,-334.56621458,0.0003315,8]
[360009857,1746478244810,-400.0,0.0003315,8]
[360009859,1746478244820,-510.92,0.0003315,8]
[360009861,1746478244830,-2556.58,0.0003315,8]
[360009864,1746478244840,-400.0,0.0003315,8]
[360009866,1746478244850,-717.05,0.0003315,8]
[360009868,1746478244859,-400.0,0.0003315,8]
[360009870,1746478244868,-2500.71,0.0003315,8]
[360009872,1746478244878,-1021.6,0.0003315,8]
[360009874,1746478244889,-400.0,0.0003315,8]
[360009876,1746478244898,-400.0,0.0003315,8]
[360009878,1746478244907,-400.0,0.0003315,8]
[360009880,1746478244917,-1929.98,0.0003315,8]
[360009882,1746478244926,-400.0,0.0003315,8]
[360009884,1746478244937,-400.0,0.0003315,8]
[360009886,1746478244948,-400.0,0.0003315,8]
[360009888,1746478244961,-400.0,0.0003315,8]
[360009890,1746478244971,-419.74,0.0003315,8]
[360009892,1746478244980,-400.0,0.0003315,8]
[360009894,1746478244990,-500.0,0.0003315,12]
[360009896,1746478244999,-1671.31,0.0003315,8]
[360009898,1746478245009,-926.06,0.0003315,8]
[360009900,1746478245018,-400.0,0.0003315,8]
[360009902,1746478245027,-400.0,0.0003315,8]
[360009904,1746478245038,-766.89,0.0003315,8]
[360009906,1746478245050,-1401.18,0.0003315,8]
[360009908,1746478245059,-400.0,0.0003315,8]
[360009910,1746478245069,-522.10438796,0.0003315,8]
[360009912,1746478245079,-400.0,0.0003315,8]
[360009915,1746478245090,-2028.41,0.0003315,8]
[360009917,1746478245101,-1584.51,0.0003315,8]
[360009919,1746478245110,-2185.29,0.0003315,8]
[360009921,1746478245120,-1838.89,0.0003315,8]
[360009923,1746478245129,-704.07,0.0003315,8]
[360009925,1746478245138,-400.0,0.0003315,8]
[360009927,1746478245147,-400.0,0.0003315,8]
[360009929,1746478245157,-400.0,0.0003315,8]
[360009931,1746478245166,-297.15303034,0.0003315,8]
[360009933,1746478245176,-426.69,0.0003315,8]
[360009935,1746478245184,-559.26,0.0003315,8]
[360009937,1746478245195,-1274.13,0.0003315,8]
[360009939,1746478245205,-2367.5,0.0003315,8]
[360009941,1746478245215,-430.80099196,0.0003315,8]
[360009943,1746478245224,-400.0,0.0003315,8]
[360009945,1746478245234,-400.0,0.0003315,8]
[360009947,1746478245245,-1755.88,0.0003315,8]
[360009949,1746478245255,-400.0,0.0003315,8]
[360009951,1746478245264,-227.96173218,0.0003315,8]
[360009953,1746478245273,-400.0,0.0003315,8]
[360009955,1746478245283,-400.0,0.0003315,8]
[360009957,1746478245292,-444.31,0.0003315,8]
[360009959,1746478245302,-400.0,0.0003315,8]
[360009961,1746478245311,-558.74,0.0003315,8]
[360009963,1746478245321,-400.0,0.0003315,8]
[360009965,1746478245330,-400.0,0.0003315,8]
[360009967,1746478245340,-400.0,0.0003315,8]
[360009970,1746478245350,-1256.74,0.0003315,8]
[360009971,1746478245359,-804.09,0.0003315,8]
[360009974,1746478245369,-8688.02,0.0003315,8]
[360009976,1746478245378,-441.62,0.0003315,8]
[360009978,1746478245388,-400.0,0.0003315,8]
[360009980,1746478245397,-400.0,0.0003315,8]
[360009982,1746478245407,-598.18,0.0003315,8]
[360009984,1746478245417,-975.04,0.0003315,8]
[360009987,1746478245427,-400.0,0.0003315,8]
[360009990,1746478245438,-411.14,0.0003315,8]
[360009992,1746478245447,-400.0,0.0003315,8]
[360009994,1746478245457,-400.0,0.0003315,8]
[360009996,1746478245466,-400.0,0.0003315,8]
[360009998,1746478245475,-400.0,0.0003315,8]
[360010000,1746478245485,-1817.46,0.0003315,8]
[360010002,1746478245495,-436.25,0.0003315,8]
[360010004,1746478245504,-400.0,0.0003315,8]
[360010006,1746478245514,-460.72,0.0003315,8]
[360010008,1746478245523,-3933.64,0.0003315,8]
[360010010,1746478245533,-491.82,0.0003315,8]
[360010012,1746478245542,-21455.99,0.0003315,8]
[360010014,1746478245552,-400.0,0.0003315,8]
[360010016,1746478245562,-400.0,0.0003315,8]
[360010018,1746478245571,-400.0,0.0003315,8]
[360010020,1746478245581,-400.0,0.0003315,8]
[360010022,1746478245590,-699.19,0.0003315,8]
[360010025,1746478245600,-2258.67,0.0003315,8]
[360010027,1746478245610,-518.32,0.0003315,8]
[360010029,1746478245619,-866.11,0.0003315,8]
[360010031,1746478245628,-1754.39,0.0003315,8]
[360010033,1746478245638,-568.11,0.0003315,8]
[360010035,1746478245647,-400.0,0.0003315,8]
[360010037,1746478245657,-493.11,0.0003315,8]
[360010039,1746478245667,-2851.87,0.0003315,8]
[360010041,1746478245676,-400.0,0.0003315,8]
[360010043,1746478245686,-2650.13,0.0003315,8]
[360010045,1746478245696,-400.76,0.0003315,8]
[360010047,1746478245706,-400.0,0.0003315,8]
[360010049,1746478245715,-400.0,0.0003315,8]
[360010051,1746478245725,-1576.25,0.0003315,8]
[360010053,1746478245735,-400.0,0.0003315,8]
[360010055,1746478245744,-475.10063685,0.0003315,8]
[360010057,1746478245754,-503.67122609,0.0003315,8]
[360010059,1746478245763,-1372.78,0.0003315,8]
[360010061,1746478245773,-400.0,0.0003315,8]
[360010063,1746478245782,-999.53,0.0003315,8]
[360010065,1746478245792,-400.0,0.0003315,8]
[360010067,1746478245801,-516.04,0.0003315,8]
[360010069,1746478245811,-1376.17,0.0003315,8]
[360010071,1746478245821,-661.72,0.0003315,8]
[360010073,1746478245831,-6359.3,0.0003315,8]
[360010075,1746478245840,-940.89,0.0003315,8]
[360010077,1746478245850,-400.0,0.0003315,8]
[360010079,1746478245860,-400.0,0.0003315,8]
[360010081,1746478245869,-8405.77,0.0003315,8]
[360010083,1746478245879,-400.0,0.0003315,8]
[360010085,1746478245889,-1110.72,0.0003315,8]
[360010087,1746478245898,-1647.64,0.0003315,8]
[360010089,1746478245909,-284.76256857,0.0003315,8]
[360010091,1746478245918,-400.0,0.0003315,8]
[360010093,1746478245927,-487.22,0.0003315,8]
[360010095,1746478245937,-400.0,0.0003315,2]
[360010097,1746478245947,-405.21092957,0.0003315,8]
[360010099,1746478245958,-400.0,0.0003315,2]
[360010101,1746478245970,-690.94,0.0003315,8]
[360010103,1746478245979,-400.0,0.0003315,8]
[360010105,1746478245988,-2712.48,0.0003315,8]
[360010107,1746478245999,-400.0,0.0003315,8]
[360010109,1746478246008,-400.0,0.0003315,2]
[360010111,1746478246017,-407.3208452,0.0003315,8]
[360010113,1746478246026,-375.013364,0.00033165,2]
[360010115,1746478246036,-220.40294868,0.00033398,2]
[360010117,1746478246046,-151.0,0.00033398,2]
[360010119,1746478246055,-151.0,0.00033421,5]
[360010121,1746478246065,-1465.62,0.00033424,8]
[360010123,1746478246075,-400.0,0.00033424,8]
[360010125,1746478246084,-400.0,0.00033424,8]
[360010127,1746478246093,-400.0,0.00033424,8]
[360010129,1746478246102,-433.60968513,0.00033424,8]
[360010131,1746478246111,-400.0,0.00033424,8]
[360010133,1746478246121,-400.0,0.00033424,8]
[360010135,1746478246130,-400.0,0.00033424,8]
[360010137,1746478246139,-506.86,0.00033424,8]
[360010139,1746478246148,-449.69260913,0.00033424,8]
[360010141,1746478246158,-400.0,0.00033424,8]
[360010143,1746478246167,-650.49,0.00033424,8]
[360010145,1746478246177,-400.0,0.00033424,8]
[360010147,1746478246186,-400.0,0.00033424,8]
[360010149,1746478246196,-400.0,0.00033424,8]
[360010151,1746478246205,-400.0,0.00033424,8]
[360010153,1746478246214,-417.269629,0.00033424,8]
[360010155,1746478246223,-400.0,0.00033424,8]
[360010157,1746478246232,-400.0,0.00033424,8]
[360010159,1746478246241,-434.43628772,0.00033424,8]
[360010161,1746478246251,-1120.46,0.00033424,8]
[360010180,1746478246405,-400.0,0.00033424,8]
[360010183,1746478246437,-400.0,0.00033424,8]
[360010185,1746478246447,-753.58,0.00033424,8]
[360010187,1746478246457,-400.0,0.00033424,8]
[360010189,1746478246466,-500.0,0.00033424,8]
[360010191,1746478246476,-400.0,0.00033424,8]
[360010193,1746478246486,-507.88,0.00033424,8]
[360010195,1746478246495,-400.0,0.00033424,8]
[360010197,1746478246505,-1829.51,0.00033424,8]
[360010199,1746478246515,-400.0,0.00033424,8]
[360010201,1746478246525,-400.0,0.00033424,8]
[360010203,1746478246534,-1620.57,0.00033424,8]
[360010205,1746478246543,-400.0,0.00033424,8]
[360010207,1746478246554,-592.51,0.00033424,8]
[360010209,1746478246563,-400.0,0.00033424,8]
[360010211,1746478246573,-537.21,0.00033424,8]
[360010213,1746478246582,-400.0,0.00033424,8]
[360010215,1746478246592,-2523.41,0.00033424,8]
[360010217,1746478246601,-547.87,0.00033424,8]
[360010219,1746478246611,-400.0,0.00033424,8]
[360010221,1746478246619,-400.0,0.00033424,8]
[360010223,1746478246628,-543.46,0.00033424,8]
[360010225,1746478246638,-544.11922285,0.00033424,8]
[360010227,1746478246646,-400.0,0.00033424,8]
[360010229,1746478246655,-500.0,0.00033424,8]
[360010230,1746478246665,-400.0,0.00033424,8]
[360010232,1746478246674,-400.0,0.00033424,8]
[360010235,1746478246684,-770.95,0.00033424,8]
[360010237,1746478246693,-1081.95,0.00033424,8]
[360010238,1746478246703,-400.0,0.00033424,8]
[360010241,1746478246713,-400.0,0.00033424,8]
[360010243,1746478246722,-400.0,0.00033424,8]
[360010245,1746478246732,-400.0,0.00033424,8]
[360010247,1746478246740,-400.0,0.00033424,8]
[360010249,1746478246750,-483.31,0.00033424,8]
[360010250,1746478246759,-400.0,0.00033424,8]
[360010252,1746478246769,-1243.4,0.00033424,8]
[360010255,1746478246778,-1098.85,0.00033424,8]
[360010257,1746478246788,-482.85,0.00033424,8]
[360010259,1746478246797,-400.0,0.00033424,8]
[360010261,1746478246806,-566.0,0.00033424,8]
[360010263,1746478246815,-400.0,0.00033424,8]
[360010265,1746478246824,-400.0,0.00033424,8]
[360010266,1746478246833,-400.0,0.00033424,8]
[360010269,1746478246843,-400.0,0.00033424,8]
[360010271,1746478246852,-400.0,0.00033424,8]
[360010273,1746478246862,-400.0,0.00033424,8]
[360010274,1746478246871,-400.0,0.00033424,8]
[360010277,1746478246881,-400.0,0.00033424,8]
[360010279,1746478246890,-400.0,0.00033424,8]
[360010281,1746478246899,-400.0,0.00033424,8]
[360010283,1746478246908,-400.0,0.00033424,8]
[360010285,1746478246918,-709.8,0.00033424,8]
[360010287,1746478246927,-400.0,0.00033424,8]
[360010289,1746478246937,-400.0,0.00033424,8]
[360010291,1746478246948,-4121.14,0.00033424,8]
[360010293,1746478246960,-400.0,0.00033424,8]
[360010295,1746478246969,-812.34,0.00033424,8]
[360010297,1746478246979,-654.51,0.00033424,8]
[360010299,1746478246988,-400.0,0.00033424,8]
[360010301,1746478246998,-730.71,0.00033424,8]
[360010303,1746478247009,-400.0,0.00033424,8]
[360010305,1746478247020,-400.0,0.00033424,8]
[360010307,1746478247030,-400.0,0.00033424,8]
[360010309,1746478247039,-400.0,0.00033424,8]
[360010311,1746478247049,-400.0,0.00033424,8]
[360010313,1746478247059,-2752.23,0.00033424,2]
[360010315,1746478247069,-400.0,0.00033424,8]
[360010317,1746478247079,-432.56,0.00033424,8]
[360010319,1746478247088,-762.68,0.00033424,8]
[360010321,1746478247098,-431.94,0.00033424,8]
[360010323,1746478247107,-436.54,0.00033424,8]
[360010325,1746478247115,-400.0,0.00033424,8]
[360010327,1746478247125,-400.0,0.00033424,8]
[360010329,1746478247134,-673.29,0.00033424,8]
[360010331,1746478247143,-400.0,0.00033424,8]
[360010333,1746478247152,-1252.09,0.00033424,8]
[360010335,1746478247162,-702.93,0.00033424,8]
[360010337,1746478247171,-400.0,0.00033424,8]
[360010339,1746478247181,-400.0,0.00033424,8]
[360010341,1746478247190,-400.0,0.00033424,8]
[360010343,1746478247201,-1335.89,0.00033424,8]
[360010345,1746478247210,-400.0,0.00033424,8]
[360010347,1746478247219,-409.22,0.00033424,8]
[360010349,1746478247229,-400.0,0.00033424,8]
[360010351,1746478247238,-990.15,0.00033424,8]
[360010353,1746478247248,-400.0,0.00033424,8]
[360010355,1746478247257,-400.0,0.00033424,8]
[360010357,1746478247266,-400.0,0.00033424,8]
[360010359,1746478247276,-784.71,0.00033424,8]
[360010360,1746478247286,-624.56,0.00033424,8]
[360010361,1746478247295,-411.93,0.00033424,8]
[360010362,1746478247305,-446.32,0.00033424,8]
[360010363,1746478247315,-500.9,0.00033424,8]
[360010364,1746478247324,-827.29,0.00033424,8]
[360010365,1746478247333,-530.84,0.00033424,8]
[360010366,1746478247343,-693.82,0.00033424,8]
[360010367,1746478247353,-400.0,0.00033424,8]
[360010368,1746478247362,-612.41,0.00033424,8]
[360010369,1746478247371,-400.0,0.00033424,8]
[360010370,1746478247381,-400.0,0.00033424,8]
[360010372,1746478247390,-392.99143153,0.00033424,8]
[360010373,1746478247400,-461.37,0.00033424,8]
[360010375,1746478247409,-213.755846,0.00033424,14]
[360010377,1746478247418,-430.1,0.00033424,8]
[360010379,1746478247427,-400.0,0.00033424,8]
[360010381,1746478247436,-563.39,0.00033424,8]
[360010383,1746478247446,-400.0,0.00033424,8]
[360010385,1746478247455,-400.0,0.00033424,8]
[360010387,1746478247464,-400.0,0.00033424,8]
[360010389,1746478247474,-400.0,0.00033424,8]
[360010391,1746478247485,-2969.31,0.00033424,8]
[360010393,1746478247495,-605.17,0.00033424,8]
[360010395,1746478247504,-400.0,0.00033424,8]
[360010397,1746478247513,-400.0,0.00033424,8]
[360010399,1746478247523,-400.0,0.00033424,8]
[360010401,1746478247532,-2239.62,0.00033424,8]
[360010403,1746478247541,-401.12,0.00033424,8]
[360010405,1746478247550,-4096.94,0.00033424,8]
[360010407,1746478247559,-400.0,0.00033424,8]
[360010409,1746478247568,-400.0,0.00033424,8]
[360010410,1746478247577,-894.21201441,0.00033424,8]
[360010540,1746478248824,-2060.92408125,0.00033424,8]
[360010713,1746478250546,-400.0,0.00032876,8]
[360010715,1746478250556,-400.0,0.00032876,8]
[360010718,1746478250566,-400.0,0.00032876,8]
[360010720,1746478250575,-400.0,0.0003315,8]
[360010722,1746478250585,-400.0,0.0003315,8]
[360010723,1746478250594,-400.0,0.0003315,8]
[360010726,1746478250603,-94.99390434,0.00033424,8]
[360010728,1746478250613,-927.70689236,0.00033424,8]
[360010746,1746478250780,-400.0,0.00032876,8]
[360010749,1746478250792,-400.0,0.00032876,2]
[360010751,1746478250801,-400.0,0.00032876,8]
[360010753,1746478250811,-400.0,0.0003315,8]
[360010754,1746478250820,-1982.76310764,0.00033424,8]
[360010757,1746478250830,-773.72,0.00033424,8]
[360010758,1746478250839,-400.0,0.00033424,8]
[360010760,1746478250848,-1317.05,0.00033424,8]
[360010762,1746478250859,-151.0,0.00033424,14]
[360010764,1746478250868,-2598.82,0.00033424,8]
[360010766,1746478250877,-400.0,0.00033424,8]
[360010768,1746478250886,-417.65,0.00033424,8]
[360010771,1746478250895,-151.0,0.00033424,14]
[360010773,1746478250904,-552.03,0.00033424,8]
[360010774,1746478250913,-400.0,0.00033424,8]
[360010776,1746478250922,-303.430025,0.00033424,14]
[360010778,1746478250931,-400.0,0.00033424,8]
[360010780,1746478250940,-510.92,0.00033424,8]
[360010782,1746478250949,-2556.58,0.00033424,8]
[360010784,1746478250962,-303.430025,0.00033424,14]
[360010787,1746478250971,-400.0,0.00033424,8]
[360010788,1746478250979,-717.05,0.00033424,8]
[360010791,1746478250988,-400.0,0.00033424,8]
[360010793,1746478250998,-2500.71,0.00033424,8]
[360010795,1746478251007,-151.0,0.00033424,14]
[360010797,1746478251017,-1021.6,0.00033424,8]
[360010799,1746478251029,-400.0,0.00033424,8]
[360010801,1746478251040,-400.0,0.00033424,8]
[360010803,1746478251050,-400.0,0.00033424,8]
[360010805,1746478251059,-400.0,0.00033424,8]
[360010807,1746478251068,-1929.98,0.00033424,8]
[360010809,1746478251077,-429.94378316,0.00033424,8]
[360010811,1746478251086,-400.0,0.00033424,8]
[360010813,1746478251095,-400.0,0.00033424,8]
[360010815,1746478251104,-419.74,0.00033424,8]
[360010817,1746478251114,-400.0,0.00033424,8]
[360010819,1746478251124,-1671.31,0.00033424,8]
[360010821,1746478251135,-926.06,0.00033424,8]
[360010823,1746478251144,-400.0,0.00033424,8]
[360010825,1746478251153,-400.0,0.00033424,8]
[360010827,1746478251163,-766.89,0.00033424,8]
[360010829,1746478251172,-1401.18,0.00033424,8]
[360010831,1746478251181,-400.0,0.00033424,8]
[360010833,1746478251190,-400.0,0.00033424,8]
[360010835,1746478251201,-2028.41,0.00033424,8]
[360010837,1746478251210,-1584.51,0.00033424,8]
[360010839,1746478251219,-2185.29,0.00033424,8]
[360010841,1746478251228,-1838.89,0.00033424,8]
[360010843,1746478251237,-704.07,0.00033424,8]
[360010845,1746478251246,-400.0,0.00033424,8]
[360010847,1746478251255,-400.0,0.00033424,8]
[360010849,1746478251264,-426.69,0.00033424,8]
[360010851,1746478251273,-559.26,0.00033424,8]
[360010853,1746478251282,-1274.13,0.00033424,8]
[360010856,1746478251293,-2367.5,0.00033424,8]
[360010858,1746478251304,-400.0,0.00033424,8]
[360010859,1746478251313,-400.0,0.00033424,8]
[360010862,1746478251324,-1755.88,0.00033424,8]
[360010863,1746478251335,-400.0,0.00033424,8]
[360010866,1746478251344,-400.0,0.00033424,8]
[360010868,1746478251353,-400.0,0.00033424,8]
[360010870,1746478251363,-444.31,0.00033424,8]
[360010872,1746478251373,-400.0,0.00033424,8]
[360010874,1746478251382,-558.74,0.00033424,8]
[360010876,1746478251392,-400.0,0.00033424,8]
[360010878,1746478251401,-400.0,0.00033424,8]
[360010880,1746478251410,-400.0,0.00033424,8]
[360010882,1746478251420,-1256.74,0.00033424,8]
[360010884,1746478251430,-804.09,0.00033424,8]
[360010886,1746478251439,-8688.02,0.00033424,8]
[360010888,1746478251448,-441.62,0.00033424,8]
[360010890,1746478251457,-400.0,0.00033424,8]
[360010892,1746478251466,-151.0,0.00033424,14]